bitfinex-derivatives/quotes_ETHF0:USTF0_20250329
["timestamp","ask_amount","ask_price","bid_price","bid_amount"]
[1743207772364,0.00787154,1904.8,1904.7,5.72123]
[1743207781479,0.00787154,1904.8,1904.7,2.51343]
[1743207781683,0.00787154,1904.8,1904.7,5.72123]
[1743207795198,1.39637154,1904.8,1904.7,5.72123]
[1743207798302,1.39637154,1904.8,1904.7,2.51343]
[1743207798502,1.39637154,1904.8,1904.7,5.72123]
[1743207800099,0.00787154,1904.8,1904.7,8.22123]
[1743207800304,0.7329,1905.6,1905.0,1.05037]
[1743207800496,0.7329,1905.6,1905.3,4.25795]
[1743207800497,2.07760137,1905.5,1905.3,4.25795]
[1743207800692,0.7325,1905.5,1905.3,3.2078]
[1743207800999,1.05015,1905.4,1905.3,3.2078]
[1743207801202,1.0503,1905.2,1905.1,3.2078]
[1743207801900,1.05024,1905.3,1905.1,3.2078]
[1743207802197,1.4654,1905.2,1905.1,4.25811]
[1743207803400,0.00787154,1905.5,1905.1,3.2078]
[1743207803602,3.92167,1905.4,1905.2,1.05024]
[1743207803806,1.4563,1905.3,1905.2,2.42444]
[1743207808004,2.5065,1905.3,1905.1,3.2078]
[1743207808209,2.50654,1905.3,1905.1,4.25811]
[1743207808403,1.3847,1905.2,1905.1,4.25811]
[1743207808905,1.3847,1905.2,1905.1,5.68461]
[1743207811402,1.05021,1905.3,1905.1,5.68461]
[1743207811611,2.44821,1905.3,1905.1,5.68461]
[1743207812111,1.398,1905.2,1905.1,5.68461]
[1743207814112,1.398,1905.2,1905.1,4.25811]
[1743207816709,1.398,1905.2,1905.1,1.05031]
[1743207816917,1.398,1905.2,1905.1,4.25811]
[1743207819617,1.398,1905.2,1905.1,1.05031]
[1743207820016,1.398,1905.2,1905.1,4.25811]
[1743207825214,1.398,1905.2,1905.1,5.63041]
[1743207827422,1.398,1905.2,1905.1,4.95741]
[1743207828031,1.398,1905.2,1905.1,6.39691]
[1743207829631,1.398,1905.2,1905.1,5.69761]
[1743207836234,2.44826,1905.2,1905.1,3.2078]
[1743207836429,3.898,1905.2,1904.7,3.2078]
[1743207836730,1.05053,1904.8,1904.7,3.2078]
[1743207836937,1.05053,1904.8,1904.7,3.19090137]
[1743207838430,1.05053,1904.7,1904.6,0.00787154]
[1743207838632,3.82943,1904.7,1904.6,0.00787154]
[1743207838827,7.03723,1904.7,1904.6,0.00787154]
[1743207839436,7.47401792,1904.7,1904.6,0.00787154]
[1743207840836,9.97401792,1904.7,1904.6,0.00787154]
[1743207844639,1.05075,1904.3,1904.2,1.3309]
[1743207845235,1.05081,1904.2,1904.1,3.2078]
[1743207845533,2.45571,1904.2,1904.1,4.5387]
[1743207845731,2.45571,1904.2,1904.1,1.3309]
[1743207846339,1.05086,1904.1,1904.0,0.00787154]
[1743207846542,2.45576,1904.1,1904.0,0.00787154]
[1743207847038,2.45576,1904.1,1904.0,1.46567154]
[1743207850147,1.4049,1904.1,1904.0,1.46567154]
[1743207850348,0.00787154,1904.3,1904.2,1.05081]
[1743207850549,0.00787154,1904.3,1904.2,4.25861]
[1743207857566,0.00787154,1904.3,1904.2,5.72081]
[1743207861665,0.6773,1904.8,1904.2,4.67]
[1743207861970,2.0674,1904.8,1904.6,1.05056]
[1743207862171,3.11788,1904.8,1904.7,1.3755]
[1743207863571,1.3901,1904.8,1904.7,2.42603]
[1743207864662,2.44058,1904.8,1904.7,2.42603]
[1743207864864,1.3901,1904.8,1904.7,1.3755]
[1743207865064,1.3901,1904.8,1904.6,1.05055]
[1743207865065,1.05056,1904.7,1904.4,3.2078]
[1743207865264,1.3709,1904.6,1904.5,2.4785]
[1743207865569,2.0916,1904.6,1904.5,2.4785]
[1743207865872,1.3709,1904.6,1904.5,2.4785]
[1743207866370,1.77118,1904.8,1904.7,1.05053]
[1743207866571,2.1802,1904.8,1904.7,1.05053]
[1743207866774,2.61664127,1904.8,1904.7,1.05053]
[1743207867673,2.1802,1904.8,1904.7,2.42483]
[1743207868773,3.66712949,1904.8,1904.7,2.42483]
[1743207869173,1.05053,1904.7,1904.6,1.3649]
[1743207869371,1.4255,1904.7,1904.4,5.68168]
[1743207869570,1.76053,1904.6,1904.4,5.69598]
[1743207869872,1.4255,1904.5,1904.4,5.69598]
[1743207870067,2.1308,1904.5,1904.4,5.69598]
[1743207872077,3.18144,1904.5,1904.4,4.6453]
[1743207872468,3.18144,1904.5,1904.4,3.2078]
[1743207872978,3.18144,1904.5,1904.4,4.6283]
[1743207873978,2.1308,1904.5,1904.4,5.679]
[1743207875880,1.4255,1904.5,1904.4,5.679]
[1743207876082,1.4255,1904.5,1904.4,6.3721]
[1743207876382,0.7099,1904.6,1904.5,1.05064]
[1743207876582,0.7099,1904.6,1904.5,2.49144]
[1743207877078,2.1704,1904.6,1904.5,2.49144]
[1743207877280,1.4605,1904.6,1904.5,2.49144]
[1743207877475,1.4605,1904.6,1904.5,3.16064]
[1743207879484,2.51109,1904.6,1904.5,3.16064]
[1743207879685,2.51109,1904.6,1904.5,1.4408]
[1743207879883,1.4605,1904.6,1904.5,2.49144]
[1743207886982,2.51109,1904.6,1904.4,4.25848]
[1743207887287,0.6742,1904.5,1904.4,4.25848]
[1743207887489,2.0503,1904.5,1904.4,5.60388]
[1743207887987,2.7174,1904.5,1904.4,5.60388]
[1743207888586,2.7174,1904.5,1904.4,2.39608]
[1743207889187,2.7174,1904.5,1904.4,5.60388]
[1743207891292,2.7174,1904.5,1904.4,2.39608]
[1743207891782,2.7174,1904.5,1904.4,5.60388]
[1743207892390,2.7174,1904.5,1904.4,3.11218]
[1743207892589,2.7174,1904.5,1904.4,6.31998]
[1743207892784,1.3761,1904.5,1904.4,6.31998]
[1743207896990,1.4113,1904.7,1904.6,1.05059]
[1743207897190,1.3838,1904.8,1904.7,1.05053]
[1743207897795,2.064,1904.8,1904.7,1.05053]
[1743207898096,2.064,1904.8,1904.7,2.44503]
[1743207898890,3.11448,1904.8,1904.7,1.3945]
[1743207900192,3.11448,1904.8,1904.7,2.44503]
[1743207900396,2.064,1904.8,1904.7,2.44503]
[1743207900798,3.11448,1904.8,1904.7,2.44503]
[1743207901595,3.11448,1904.8,1904.7,1.3945]
[1743207901792,2.064,1904.8,1904.6,1.05055]
[1743207901996,1.4429,1904.7,1904.6,1.05055]
[1743207905698,1.4429,1904.7,1904.5,1.344]
[1743207906293,0.6907,1904.6,1904.5,2.3946]
[1743207910301,1.4429,1904.7,1904.6,1.05059]
[1743207910489,1.4429,1904.7,1904.6,2.43709]
[1743207911095,1.4429,1904.7,1904.6,5.64489]
[1743207913505,1.4429,1904.7,1904.6,2.43709]
[1743207914098,1.4429,1904.7,1904.6,1.05059]
[1743207914302,1.4429,1904.7,1904.4,5.3944]
[1743207914602,1.4429,1904.7,1904.4,4.6807]
[1743207914799,2.49346,1904.7,1904.5,2.52351]
[1743207915209,1.3588,1904.6,1904.5,2.52351]
[1743207918504,1.3588,1904.6,1904.5,3.23691]
[1743207921014,1.3588,1904.6,1904.5,2.52351]
[1743207921608,1.3588,1904.6,1904.5,1.4729]
[1743207922206,1.3588,1904.6,1904.5,2.52354]
[1743207929313,2.40939,1904.6,1904.5,1.4729]
[1743207929718,1.3588,1904.6,1904.5,2.52354]
[1743207929918,2.40939,1904.6,1904.5,1.4729]
[1743207930114,2.40939,1904.6,1904.4,1.05067]
[1743207930319,3.84046,1904.5,1904.3,4.97813]
[1743207930620,1.3973,1904.4,1904.3,5.71913]
[1743207932325,1.3973,1904.4,1904.3,4.25853]
[1743207933419,1.05081,1904.2,1904.0,0.00787154]
[1743207933618,4.6003,1904.5,1904.0,1.42027154]
[1743207933619,2.8097,1904.1,1904.0,1.42027154]
[1743207933819,2.8097,1904.1,1904.0,2.47119154]
[1743207934319,2.8097,1904.1,1904.0,1.42027154]
[1743207934524,3.48515062,1904.1,1904.0,1.42027154]
[1743207935226,4.53601062,1904.1,1904.0,1.42027154]
[1743207935425,3.48515062,1904.1,1904.0,1.42027154]
[1743207937229,2.8097,1904.1,1904.0,1.42027154]
[1743207937829,3.86056,1904.1,1904.0,1.42027154]
[1743207938127,2.8097,1904.1,1904.0,1.42027154]
[1743207938727,2.8097,1904.1,1904.0,2.47119154]
[1743207939928,3.86056,1904.1,1904.0,1.42027154]
[1743207940129,3.86056,1904.1,1904.0,0.00787154]
[1743207940729,1.051,1903.9,1903.7,4.25886]
[1743207941023,2.48033,1903.8,1903.7,4.25888]
[1743207941329,2.8461,1903.8,1903.7,4.25888]
[1743207941725,2.8461,1903.8,1903.7,3.2078]
[1743207941726,3.89713,1903.8,1903.7,3.2078]
[1743207944324,3.89713,1903.8,1903.7,4.25888]
[1743207944627,3.89713,1903.8,1903.7,3.2078]
[1743207946432,3.89713,1903.8,1903.7,5.68468]
[1743207946933,3.89713,1903.8,1903.7,4.6336]
[1743207947735,3.89713,1903.8,1903.7,5.68468]
[1743207948232,3.89713,1903.8,1903.7,4.6336]
[1743207950732,0.00787154,1903.9,1903.8,1.05103]
[1743207950931,0.00787154,1903.9,1903.8,3.77953]
[1743207954138,1.4077,1904.3,1904.1,1.05085]
[1743207954432,1.4077,1904.3,1904.2,3.76871]
[1743207954831,1.4077,1904.3,1904.2,2.7179]
[1743207955142,2.45845,1904.3,1904.2,2.7179]
[1743207955929,0.00787154,1904.4,1904.3,1.05075]
[1743207956136,0.00787154,1904.4,1904.3,5.62345]
[1743207974839,1.4363,1904.8,1904.7,1.05053]
[1743207976652,2.8168,1904.8,1904.7,1.05053]
[1743207987965,3.86733,1904.8,1904.6,0.00787154]
[1743207988261,1.4135,1904.7,1904.6,1.05844154]
[1743207988956,1.4135,1904.7,1904.6,0.00787154]
[1743207989759,2.46403,1904.7,1904.6,0.00787154]
[1743207989968,2.46403,1904.7,1904.2,3.2078]
[1743207989969,9.74767,1904.7,1904.2,3.2078]
[1743207990160,1.05073,1904.4,1904.2,3.2078]
[1743207990363,3.09005,1904.3,1904.2,3.2078]
[1743207990662,2.0393,1904.3,1904.2,3.2078]
[1743207991057,2.68653923,1904.3,1904.2,3.2078]
[1743207991963,2.68625452,1904.3,1904.2,3.2078]
[1743207992258,3.09005,1904.3,1904.2,3.2078]
[1743207992464,2.0393,1904.3,1904.2,3.2078]
[1743207993166,2.7172,1904.3,1904.2,3.2078]
[1743207993951,2.7172,1904.3,1904.2,4.25861]
[1743207994361,2.7172,1904.3,1904.2,5.60121]
[1743207995653,2.7172,1904.3,1904.2,4.25861]
[1743207995859,2.7172,1904.3,1904.2,3.2078]
[1743207996064,2.7172,1904.3,1904.2,4.25861]
[1743207996760,2.7172,1904.3,1904.2,3.2078]
[1743207996964,2.7172,1904.3,1904.2,4.25861]
[1743207997965,2.7172,1904.3,1904.2,5.73101]
[1743208000869,2.0393,1904.3,1904.2,5.73101]
[1743208003665,1.3588,1904.3,1904.2,5.73101]
[1743208003864,1.3588,1904.3,1904.2,7.07551]
[1743208014079,1.3588,1904.3,1904.2,6.40121]
[1743208015483,3.2078,1905.1,1904.8,1.05048]
[1743208015676,1.4211,1905.1,1904.8,3.2078]
[1743208016073,1.4211,1905.1,1904.9,1.3567]
[1743208016276,3.2078,1905.0,1904.5,3.348]
[1743208016475,3.2078,1905.0,1904.4,3.2078]
[1743208016476,1.05057,1904.7,1904.3,5.998]
[1743208016678,1.4625,1904.6,1904.4,1.0507]
[1743208016880,1.4625,1904.6,1904.4,1.3632]
[1743208016881,2.8951,1904.6,1904.4,1.3632]
[1743208017383,1.4326,1904.5,1904.3,4.25852]
[1743208017584,1.4326,1904.5,1904.3,5.60602]
[1743208018985,2.48326,1904.5,1904.3,3.2078]
[1743208019485,1.4128,1904.4,1904.3,3.2078]
[1743208021688,1.4128,1904.4,1904.3,4.25855]
[1743208021883,1.4128,1904.4,1904.3,5.66185]
[1743208022385,2.833,1904.6,1904.5,1.05064]
[1743208022589,2.833,1904.6,1904.4,3.81226]
[1743208022789,2.833,1904.6,1904.5,1.4033]
[1743208023784,3.88359,1904.6,1904.5,1.4033]
[1743208025087,2.833,1904.6,1904.5,1.4033]
[1743208027702,2.833,1904.6,1904.5,2.45394]
[1743208027906,1.3705,1904.6,1904.5,2.45394]
[1743208029995,1.3705,1904.6,1904.5,1.4033]
[1743208030601,1.3705,1904.6,1904.5,2.45394]
[1743208031302,1.3705,1904.6,1904.5,5.66174]
[1743208031506,1.40397154,1904.7,1904.6,1.05059]
[1743208031695,1.40397154,1904.7,1904.6,2.48059]
[1743208032996,2.74907154,1904.7,1904.6,2.48059]
[1743208034901,1.05067,1904.5,1904.3,4.25852]
[1743208035101,1.3601,1904.4,1904.3,4.25852]
[1743208035299,2.7052,1904.4,1904.3,4.25852]
[1743208036807,3.7559,1904.4,1904.3,3.2078]
[1743208037510,1.05081,1904.2,1904.1,0.00787154]
[1743208038107,1.3963,1904.2,1904.1,1.05873154]
[1743208038905,1.3963,1904.2,1904.1,2.40923154]
[1743208040412,1.3963,1904.2,1904.1,5.61703154]
[1743208040613,4.7081,1904.4,1904.2,1.05078]
[1743208040807,1.3601,1904.4,1904.3,2.40125]
[1743208041014,1.3487,1904.5,1904.3,3.14015]
[1743208041213,2.39934,1904.5,1904.4,1.3505]
[1743208041907,1.05072,1904.4,1904.2,1.77369]
[1743208042103,2.46742,1904.4,1904.3,1.3561]
[1743208042409,2.46742,1904.4,1904.3,2.40685]
[1743208042809,2.46742,1904.4,1904.3,1.3561]
[1743208043413,1.4167,1904.4,1904.3,2.40685]
[1743208046913,0.6825,1904.5,1904.4,1.0507]
[1743208047114,2.0625,1904.5,1904.4,3.2005]
[1743208047312,0.00787154,1904.7,1904.6,1.05059]
[1743208047711,1.38787154,1904.7,1904.6,1.05059]
[1743208047911,1.38787154,1904.7,1904.6,1.75699]
[1743208048317,0.00787154,1904.7,1904.6,1.75699]
[1743208050414,1.37187154,1904.7,1904.6,1.75699]
[1743208051120,0.00787154,1904.7,1904.6,1.75699]
[1743208051512,0.00787154,1904.7,1904.6,4.96479]
[1743208052310,4.685,1905.2,1905.1,1.05031]
[1743208052517,1.32010137,1905.2,1905.1,1.05031]
[1743208053120,1.355,1905.4,1905.3,1.0502]
[1743208055412,0.00787154,1905.5,1905.4,1.05015]
[1743208055820,1.46327154,1905.5,1905.4,1.05015]
[1743208057218,2.16317154,1905.5,1905.3,2.52217]
[1743208057520,2.16317154,1905.5,1905.4,1.05015]
[1743208057719,2.16317154,1905.5,1905.4,2.50675]
[1743208058121,1.46327154,1905.5,1905.4,2.50675]
[1743208060019,1.05017,1905.4,1905.2,1.05809154]
[1743208060320,1.4724,1905.3,1905.2,1.05809154]
[1743208060521,2.1901,1905.3,1905.2,2.49089154]
[1743208061622,1.05800154,1905.5,1905.2,2.49089154]
[1743208061623,0.00787154,1905.5,1905.4,1.05015]
[1743208061923,1.75646154,1905.5,1905.4,1.05015]
[1743208062222,1.75646154,1905.5,1905.3,1.05017]
[1743208062910,1.4724,1905.4,1905.3,1.05017]
[1743208063725,2.52255,1905.4,1905.3,1.05017]
[1743208063925,2.52255,1905.4,1905.2,1.44067154]
[1743208064126,1.3303,1905.3,1905.2,2.49093154]
[1743208066524,2.3805,1905.3,1905.2,1.44067154]
[1743208066910,2.3805,1905.3,1905.2,0.00787154]
[1743208070020,0.70637154,1905.5,1905.2,3.21567154]
[1743208070225,2.10397154,1905.5,1905.4,1.05015]
[1743208070522,3.15408154,1905.5,1905.3,1.4575]
[1743208070726,2.10397154,1905.5,1905.4,1.05015]
[1743208071422,3.15406154,1905.5,1905.4,1.05015]
[1743208071923,1.05015,1905.4,1905.3,1.4575]
[1743208072112,2.44775,1905.4,1905.3,2.5077]
[1743208072318,1.3976,1905.4,1905.3,2.5077]
[1743208074025,2.44775,1905.4,1905.3,1.4575]
[1743208074419,2.44775,1905.4,1905.3,2.5077]
[1743208074726,1.3976,1905.4,1905.3,2.5077]
[1743208076320,1.75646154,1905.5,1905.4,1.05015]
[1743208076512,3.16436154,1905.5,1905.4,2.52285]
[1743208077322,0.00787154,1905.5,1905.4,5.73065]
[1743208077721,0.6992,1905.8,1905.7,1.04998]
[1743208078320,2.1071,1905.8,1905.7,1.04998]
[1743208079826,2.1071,1905.8,1905.6,1.4727]
[1743208080023,2.0955,1905.7,1905.6,1.4727]
[1743208080629,2.0955,1905.7,1905.6,2.5227]
[1743208082519,3.21560184,1905.9,1905.7,1.04998]
[1743208082724,1.37980184,1905.9,1905.8,1.3324]
[1743208083026,0.00780184,1905.9,1905.8,2.38233]
[1743208092238,0.03924219,1906.2,1906.1,1.04976]
[1743208094132,1.43924219,1906.2,1906.1,1.04976]
[1743208094636,2.48895219,1906.2,1906.1,1.04976]
[1743208094830,1.43924219,1906.2,1906.0,2.39648]
[1743208095035,1.4,1906.1,1906.0,2.39648]
[1743208095337,1.4,1906.1,1906.0,1.04978]
[1743208097825,0.03924219,1906.2,1906.1,1.04976]
[1743208098035,1.42364219,1906.2,1906.1,1.04976]
[1743208099734,0.03924219,1906.2,1906.1,1.04976]
[1743208099930,4.613,1906.9,1906.2,2.62425]
[1743208100129,2.62244,1907.6,1906.4,5.8318]
[1743208100130,5.936,1907.6,1906.4,5.8318]
[1743208100336,1.3497,1907.1,1907.0,1.04925]
[1743208100540,0.7277,1907.3,1907.1,1.04918]
[1743208100837,1.3497,1907.2,1907.1,1.04918]
[1743208101239,1.3497,1907.2,1907.1,1.04921]
[1743208102836,1.3497,1907.2,1906.9,3.2078]
[1743208102837,1.3497,1907.2,1907.0,1.04923]
[1743208103038,1.3497,1907.2,1907.1,1.04921]
[1743208103632,1.3497,1907.2,1907.0,1.04923]
[1743208104027,1.3497,1907.2,1907.0,1.04926]
[1743208104836,1.3497,1907.2,1907.1,1.04921]
[1743208106540,1.3497,1907.2,1906.9,3.9003]
[1743208106741,1.3497,1907.2,1907.1,1.04921]
[1743208109046,1.3497,1907.2,1907.1,4.25701]
[1743208111543,1.376,1907.4,1907.3,1.0491]
[1743208112235,1.3772,1907.5,1907.4,1.04905]
[1743208112431,1.3772,1907.5,1907.4,4.25685]
[1743208113135,2.42619,1907.5,1907.4,3.2078]
[1743208113336,1.0491,1907.3,1907.2,3.2078]
[1743208113544,2.47897,1907.4,1907.2,4.25694]
[1743208113748,1.4299,1907.3,1907.2,4.25694]
[1743208113942,2.479,1907.3,1907.2,3.2078]
[1743208114144,1.4299,1907.3,1907.2,5.62546]
[1743208115437,2.479,1907.3,1907.2,4.5763]
[1743208115643,2.479,1907.3,1907.2,3.2078]
[1743208116139,2.479,1907.3,1907.1,4.40621]
[1743208116437,1.3763,1907.2,1907.1,4.40621]
[1743208116638,1.3763,1907.2,1907.1,5.83761]
[1743208117236,1.3763,1907.2,1907.1,2.48061]
[1743208117440,1.3763,1907.2,1907.1,1.4314]
[1743208117646,2.42546,1907.2,1907.1,1.4314]
[1743208117944,1.04921,1907.1,1907.0,3.2078]
[1743208118149,1.0493,1907.0,1906.8,9.04356]
[1743208118441,2.47862,1906.9,1906.8,9.04356]
[1743208118645,1.4293,1906.9,1906.8,9.04356]
[1743208118839,1.4293,1906.9,1906.8,3.2078]
[1743208118840,2.47862,1906.9,1906.8,3.2078]
[1743208119240,1.4293,1906.9,1906.8,4.25718]
[1743208119547,1.4293,1906.9,1906.8,5.68978]
[1743208119944,2.47862,1906.9,1906.8,5.68978]
[1743208120737,2.47862,1906.9,1906.8,4.6404]
[1743208121047,2.47862,1906.9,1906.8,5.68978]
[1743208121048,1.4293,1906.9,1906.8,5.68978]
[1743208123248,2.43715,1907.1,1907.0,1.04927]
[1743208123556,2.43715,1907.1,1906.9,2.39778]
[1743208123741,2.43715,1907.1,1907.0,1.3485]
[1743208128950,1.04932,1906.9,1906.8,4.25714]
[1743208129252,1.04932,1906.9,1906.8,4.5445]
[1743208129642,1.04932,1906.9,1906.8,5.59388]
[1743208130149,1.04932,1906.9,1906.8,4.5445]
[1743208131451,1.04932,1906.9,1906.8,5.59388]
[1743208131645,1.04932,1906.9,1906.8,4.5445]
[1743208132251,1.4419,1907.0,1906.8,5.59388]
[1743208132452,2.49122,1907.0,1906.9,1.363]
[1743208133748,1.04932,1906.9,1906.8,3.2078]
[1743208133947,2.47702,1906.9,1906.8,4.626]
[1743208134454,1.4277,1906.9,1906.8,5.67538]
[1743208134855,2.47702,1906.9,1906.8,5.67538]
[1743208137250,2.47702,1906.9,1906.8,4.626]
[1743208142560,2.47702,1906.9,1906.8,1.4182]
[1743208142858,2.47702,1906.9,1906.8,4.626]
[1743208144559,2.47702,1906.9,1906.8,1.4182]
[1743208144762,2.47702,1906.9,1906.8,4.626]
[1743208145864,1.3879,1907.1,1907.0,1.04927]
[1743208146158,1.04921,1907.1,1907.0,3.2078]
[1743208146461,3.1828,1907.2,1907.0,4.25707]
[1743208146661,3.1828,1907.2,1907.1,1.331]
[1743208148160,2.5101,1907.2,1907.1,1.331]
[1743208148462,2.5101,1907.2,1907.1,2.38021]
[1743208148966,2.5101,1907.2,1907.1,1.331]
[1743208150363,2.5101,1907.2,1907.1,2.38021]
[1743208150565,2.5101,1907.2,1907.1,1.331]
[1743208150762,1.0492,1907.2,1907.1,1.331]
[1743208150958,0.6727,1907.3,1907.1,1.331]
[1743208151152,2.0446,1907.3,1907.1,1.331]
[1743208151357,3.09372,1907.3,1907.2,0.7125]
[1743208152264,3.09372,1907.3,1907.2,2.1568]
[1743208154467,2.42102,1907.3,1907.2,2.1568]
[1743208155373,1.3719,1907.3,1907.2,2.1568]
[1743208155562,1.0491,1907.3,1907.2,2.1568]
[1743208156066,2.3791,1907.3,1907.2,2.1568]
[1743208157071,2.3791,1907.3,1907.2,1.4443]
[1743208163569,1.04916,1907.2,1907.1,3.2078]
[1743208163775,1.04921,1907.1,1907.0,0.6975]
[1743208163968,1.04921,1907.1,1907.0,1.74677]
[1743208164367,2.39681,1907.1,1907.0,2.43977]
[1743208164672,2.39681,1907.1,1907.0,5.64757]
[1743208165176,1.3476,1907.1,1907.0,5.64757]
[1743208165374,2.39681,1907.1,1907.0,5.64757]
[1743208166368,2.39681,1907.1,1907.0,3.9053]
[1743208166667,2.39681,1907.1,1907.0,3.2078]
[1743208166868,3.08181,1907.1,1907.0,3.2078]
[1743208173678,2.62256,1907.5,1907.0,3.2078]
[1743208173679,8.67214117,1907.7,1907.0,6.5518]
[1743208173873,1.0491,1907.3,1907.2,3.2078]
[1743208175570,1.0491,1907.3,1907.2,4.5891]
[1743208178978,1.04921,1907.1,1907.0,3.2078]
[1743208179578,2.42781,1907.1,1907.0,3.2078]
[1743208179882,2.42781,1907.1,1906.8,4.6581]
[1743208179883,1.04932,1906.9,1906.8,4.6581]
[1743208180585,2.40212,1906.9,1906.8,4.6581]
[1743208183387,2.40212,1906.9,1906.8,3.2078]
[1743208187392,2.40212,1906.9,1906.8,4.5979]
[1743208190788,1.04954,1906.5,1906.4,0.00787154]
[1743208191679,1.04954,1906.5,1906.4,3.21567154]
[1743208192077,2.50904,1906.5,1906.4,5.39497154]
[1743208192290,2.50904,1906.5,1906.4,6.08977154]
[1743208197292,2.50904,1906.5,1906.4,5.35807154]
[1743208198495,2.50904,1906.5,1906.4,4.66327154]
[1743208198793,1.04976,1906.1,1905.8,3.2078]
[1743208198994,7.1828,1906.4,1906.1,1.4759]
[1743208199183,2.8008,1906.3,1906.1,1.4759]
[1743208199388,1.351,1906.2,1906.1,1.4759]
[1743208199798,2.40071,1906.2,1906.1,1.4759]
[1743208200896,1.04976,1906.1,1906.0,0.00787154]
[1743208201101,2.38566,1906.1,1906.0,0.00787154]
[1743208202999,1.04987,1905.9,1905.8,3.2078]
[1743208203798,3.08467,1905.9,1905.8,3.2078]
[1743208203993,1.04993,1905.8,1905.7,1.3635]
[1743208204294,2.38873,1905.8,1905.7,1.35447291]
[1743208207999,2.38873,1905.8,1905.7,0.00787154]
[1743208210904,3.9637,1905.8,1905.5,1.4366]
[1743208211104,1.05004,1905.6,1905.5,1.4366]
[1743208211501,2.44464,1905.6,1905.5,1.4366]
[1743208213096,1.05009,1905.5,1905.4,3.21567154]
[1743208213296,3.09919,1905.5,1905.4,0.00787154]
[1743208218107,1.05026,1905.2,1905.1,3.2078]
[1743208218813,1.05031,1905.1,1905.0,1.4477]
[1743208219002,2.52371,1905.1,1905.0,1.4477]
[1743208219201,2.52371,1905.1,1905.0,4.6555]
[1743208220309,0.00787154,1905.2,1905.0,4.6555]
[1743208220505,1.05813154,1905.2,1905.1,1.3315]
[1743208220813,0.00787154,1905.2,1905.1,2.38181]
[1743208222105,1.05813154,1905.2,1905.1,1.3315]
[1743208222306,2.45973154,1905.2,1905.1,1.3315]
[1743208223110,0.00787154,1905.2,1905.1,2.38181]
[1743208227613,1.05813154,1905.2,1905.1,2.38181]
[1743208228412,0.00787154,1905.2,1905.1,2.38181]
[1743208228614,1.05813154,1905.2,1905.1,1.3315]
[1743208228815,2.48373154,1905.2,1905.1,1.3315]
[1743208230106,1.05031,1905.1,1905.0,3.2078]
[1743208230317,3.87521,1905.1,1905.0,4.6429]
[1743208232022,1.05816154,1905.2,1905.0,4.6429]
[1743208232210,1.05816154,1905.2,1905.1,1.3656]
[1743208232909,2.50936154,1905.2,1905.1,1.3656]
[1743208234518,2.50936154,1905.2,1905.1,2.41591]
[1743208234519,0.00787154,1905.2,1905.1,2.41591]
[1743208236910,1.05813154,1905.2,1905.1,1.3656]
[1743208237114,2.48223154,1905.2,1905.1,1.3656]
[1743208237923,2.48223154,1905.2,1905.1,2.41591]
[1743208238327,2.48223154,1905.2,1905.1,1.3656]
[1743208238618,2.48223154,1905.2,1905.0,3.2078]
[1743208238619,1.05031,1905.1,1905.0,3.2078]
[1743208238823,3.85271,1905.1,1905.0,4.6287]
[1743208239021,0.00787154,1905.2,1905.0,4.6287]
[1743208239220,0.00787154,1905.2,1905.1,1.4209]
[1743208239420,0.00787154,1905.2,1905.1,2.47121]
[1743208239622,1.05813154,1905.2,1905.1,2.47121]
[1743208243025,1.05813154,1905.2,1905.1,1.4209]
[1743208244335,1.05813154,1905.2,1905.1,2.47121]
[1743208244634,0.00787154,1905.2,1905.1,2.47121]
[1743208255843,0.00787154,1905.2,1905.1,5.81721]
[1743208263657,0.00787154,1905.2,1905.0,3.2078]
[1743208263658,1.05031,1905.1,1905.0,3.2078]
[1743208263856,3.85001,1905.1,1905.0,3.2078]
[1743208270358,3.85001,1905.1,1905.0,2.0998]
[1743208270553,1.05059,1904.6,1904.5,3.2078]
[1743208270760,7.19073,1905.0,1904.5,2.41802]
[1743208270959,1.05058,1904.7,1904.5,2.41802]
[1743208271153,2.0721,1904.6,1904.5,2.41802]
[1743208272163,3.12269,1904.6,1904.5,1.3674]
[1743208273861,2.0721,1904.6,1904.4,4.26637154]
[1743208274062,1.3884,1904.5,1904.4,4.26637154]
[1743208275364,2.43904,1904.5,1904.4,0.00787154]
[1743208275560,5.64684,1904.5,1904.4,0.00787154]
[1743208284363,2.43904,1904.5,1904.4,0.00787154]
[1743208293079,5.64684,1904.5,1904.4,0.00787154]
[1743208299188,2.43904,1904.5,1904.4,0.00787154]
[1743208299388,5.64684,1904.5,1904.4,0.00787154]
[1743208300389,3.2078,1904.7,1904.4,0.00787154]
[1743208300581,1.05034,1905.1,1904.5,5.97462]
[1743208300785,1.05038,1905.0,1904.6,6.0175]
[1743208300987,1.05038,1905.0,1904.8,1.05045]
[1743208301288,1.03348137,1905.0,1904.9,2.0958]
[1743208302195,2.41908137,1905.0,1904.9,2.0958]
[1743208303791,1.05049,1904.8,1904.6,4.97226]
[1743208303991,1.05049,1904.8,1904.7,2.09380137]
[1743208304593,2.48395,1904.9,1904.7,2.09380137]
[1743208304794,2.48395,1904.9,1904.7,0.7304]
[1743208305295,2.48395,1904.9,1904.7,1.78093]
[1743208305595,2.48395,1904.9,1904.7,0.7304]
[1743208305797,2.48395,1904.9,1904.7,1.78093]
[1743208306095,2.48395,1904.9,1904.7,0.7304]
[1743208306296,1.05048,1904.8,1904.7,0.7304]
[1743208306596,2.48398,1904.8,1904.7,0.7304]
[1743208306797,3.15548,1904.8,1904.7,0.7304]
[1743208307292,3.15548,1904.8,1904.7,2.1484]